[Event "Titled Tuesday Blitz March 15 Early 2022"]
[White "Migot, Tangi"]
[Black "Maghsoodloo, Parham"]
[WhiteFideId "662445"]
[BlackFideId "12539929"]
[WhiteElo "2520"]
[BlackElo "2630"]
[Result "0-1"]
[Round "04"]
[TimeControl "180+1"]
[Date "2022.03.15"]
[WhiteClock "0:00:13"]
[BlackClock "0:02:19"]

1. Nf3 {[%clk 0:02:33]}  d5 {[%clk 0:02:57]} 2. g3 {[%clk 0:02:34]}  c6 {[%clk 0:02:58]} 3. Bg2 {[%clk 0:02:33]}  Bf5 {[%clk 0:02:58]} 4. O-O {[%clk 0:02:34]}  Nd7 {[%clk 0:02:59]} 5. d3 {[%clk 0:02:34]}  h6 {[%clk 0:02:59]} 6. Qe1 {[%clk 0:02:35]}  e5 {[%clk 0:03:00]} 7. e4 {[%clk 0:02:35]}  dxe4 {[%clk 0:03:00]} 8. dxe4 {[%clk 0:02:35]}  Be6 {[%clk 0:03:01]} 9. a4 {[%clk 0:02:34]}  Ngf6 {[%clk 0:03:01]} 10. b3 {[%clk 0:02:33]}  a5 {[%clk 0:03:01]} 11. Ba3 {[%clk 0:02:28]}  Bxa3 {[%clk 0:03:01]} 12. Nxa3 {[%clk 0:02:29]}  Qc7 {[%clk 0:03:02]} 13. Qe2 {[%clk 0:02:29]}  O-O {[%clk 0:03:02]} 14. Nd2 {[%clk 0:02:29]}  Rfd8 {[%clk 0:03:02]} 15. f4 {[%clk 0:02:27]}  Nc5 {[%clk 0:03:01]} 16. f5 {[%clk 0:02:24]}  Bc8 {[%clk 0:03:01]} 17. Nac4 {[%clk 0:02:10]}  b6 {[%clk 0:02:56]} 18. g4 {[%clk 0:02:07]}  Ba6 {[%clk 0:02:56]} 19. h4 {[%clk 0:02:07]}  Rxd2 {[%clk 0:02:56]} 20. Qxd2 {[%clk 0:02:06]}  Bxc4 {[%clk 0:02:55]} 21. bxc4 {[%clk 0:02:06]}  Nxg4 {[%clk 0:02:56]} 22. Rfd1 {[%clk 0:01:59]}  Qe7 {[%clk 0:02:55]} 23. Qe1 {[%clk 0:01:44]}  Nf6 {[%clk 0:02:51]} 24. Qe3 {[%clk 0:01:38]}  Nh5 {[%clk 0:02:38]} 25. Rab1 {[%clk 0:01:16]}  Nxa4 {[%clk 0:02:37]} 26. Qb3 {[%clk 0:01:15]}  b5 {[%clk 0:02:30]} 27. cxb5 {[%clk 0:01:14]}  cxb5 {[%clk 0:02:30]} 28. Qxb5 {[%clk 0:01:14]}  Nc3 {[%clk 0:02:28]} 29. Qc6 {[%clk 0:01:09]}  Qa7+ {[%clk 0:02:28]} 30. Kh2 {[%clk 0:01:01]}  Nxb1 {[%clk 0:02:26]} 31. Rxb1 {[%clk 0:01:02]}  Rf8 {[%clk 0:02:24]} 32. Qb6 {[%clk 0:00:54]}  Qe7 {[%clk 0:02:24]} 33. Qf2 {[%clk 0:00:52]}  a4 {[%clk 0:02:24]} 34. Ra1 {[%clk 0:00:35]}  a3 {[%clk 0:02:24]} 35. c4 {[%clk 0:00:36]}  Rb8 {[%clk 0:02:23]} 36. Ra2 {[%clk 0:00:33]}  Rb3 {[%clk 0:02:19]} 37. Bf1 {[%clk 0:00:24]}  Ng3 {[%clk 0:02:19]} 38. Bg2 {[%clk 0:00:15]}  Qxh4+ {[%clk 0:02:19]} 39. Kg1 {[%clk 0:00:13]}  Rb1+ {[%clk 0:02:19]} 0-1


[Site "https://www.chess.com"]

[Event "Titled Tuesday Blitz March 15 Early 2022"]
[White "Milosevic, Milos"]
[Black "Nan, M K Khine Hlyan"]
[WhiteFideId "964875"]
[BlackFideId "13002899"]
[WhiteElo "2237"]
[BlackElo "1943"]
[Result "1-0"]
[Round "04"]
[TimeControl "180+1"]
[Date "2022.03.15"]
[WhiteClock "0:01:28"]
[BlackClock "0:01:10"]

1. e4 {[%clk 0:02:51]}  e5 {[%clk 0:02:59]} 2. Nf3 {[%clk 0:02:51]}  Nc6 {[%clk 0:02:58]} 3. Bb5 {[%clk 0:02:49]}  Bc5 {[%clk 0:02:57]} 4. O-O {[%clk 0:02:46]}  Nge7 {[%clk 0:02:48]} 5. Nxe5 {[%clk 0:02:43]}  Nxe5 {[%clk 0:02:47]} 6. d4 {[%clk 0:02:44]}  Bd6 {[%clk 0:02:45]} 7. dxe5 {[%clk 0:02:41]}  Bxe5 {[%clk 0:02:44]} 8. f4 {[%clk 0:02:41]}  Bf6 {[%clk 0:02:44]} 9. e5 {[%clk 0:02:38]}  c6 {[%clk 0:02:43]} 10. Be2 {[%clk 0:02:35]}  Bh4 {[%clk 0:02:38]} 11. g3 {[%clk 0:02:34]}  Nd5 {[%clk 0:02:27]} 12. gxh4 {[%clk 0:02:30]}  Qxh4 {[%clk 0:02:27]} 13. Qe1 {[%clk 0:02:22]}  Qh6 {[%clk 0:02:20]} 14. f5 {[%clk 0:02:19]}  Qh3 {[%clk 0:02:04]} 15. Rf3 {[%clk 0:02:18]}  Qh5 {[%clk 0:02:01]} 16. Rg3 {[%clk 0:02:12]}  Qxf5 {[%clk 0:02:01]} 17. Bd3 {[%clk 0:02:06]}  Qe6 {[%clk 0:01:57]} 18. Rxg7 {[%clk 0:02:03]}  d6 {[%clk 0:01:51]} 19. Qf2 {[%clk 0:02:03]}  dxe5 {[%clk 0:01:49]} 20. Nc3 {[%clk 0:01:53]}  Bd7 {[%clk 0:01:49]} 21. Bg5 {[%clk 0:01:50]}  f6 {[%clk 0:01:44]} 22. Nxd5 {[%clk 0:01:47]}  cxd5 {[%clk 0:01:32]} 23. Qxf6 {[%clk 0:01:48]}  Qxf6 {[%clk 0:01:28]} 24. Bxf6 {[%clk 0:01:49]}  e4 {[%clk 0:01:28]} 25. Rxd7 {[%clk 0:01:40]}  Kxd7 {[%clk 0:01:25]} 26. Bxh8 {[%clk 0:01:41]}  exd3 {[%clk 0:01:24]} 27. Bc3 {[%clk 0:01:33]}  dxc2 {[%clk 0:01:22]} 28. Rc1 {[%clk 0:01:34]}  Rg8+ {[%clk 0:01:21]} 29. Kf1 {[%clk 0:01:33]}  Rf8+ {[%clk 0:01:18]} 30. Ke2 {[%clk 0:01:30]}  Rg8 {[%clk 0:01:18]} 31. Kf3 {[%clk 0:01:28]}  Rf8+ {[%clk 0:01:16]} 32. Ke3 {[%clk 0:01:29]}  Kd6 {[%clk 0:01:10]} 33. Bb4+ {[%clk 0:01:28]} 1-0


[Site "https://www.chess.com"]

[Event "Titled Tuesday Blitz March 15 Early 2022"]
[White "Miszler, Levente"]
[Black "Baskin, Robert"]
[WhiteFideId "763276"]
[BlackFideId "24662402"]
[WhiteElo "1966"]
[BlackElo "2488"]
[Result "0-1"]
[Round "04"]
[TimeControl "180+1"]
[Date "2022.03.15"]
[WhiteClock "0:00:10"]
[BlackClock "0:00:24"]

1. Nf3 {[%clk 0:02:58]}  d5 {[%clk 0:02:56]} 2. g3 {[%clk 0:02:53]}  c5 {[%clk 0:02:48]} 3. Bg2 {[%clk 0:02:52]}  Nc6 {[%clk 0:02:48]} 4. d4 {[%clk 0:02:51]}  Nf6 {[%clk 0:02:47]} 5. O-O {[%clk 0:02:51]}  Bg4 {[%clk 0:02:34]} 6. c3 {[%clk 0:02:43]}  cxd4 {[%clk 0:02:27]} 7. cxd4 {[%clk 0:02:36]}  e6 {[%clk 0:02:27]} 8. Nc3 {[%clk 0:02:35]}  Be7 {[%clk 0:02:26]} 9. h3 {[%clk 0:02:35]}  Bh5 {[%clk 0:02:23]} 10. g4 {[%clk 0:02:34]}  Bg6 {[%clk 0:02:22]} 11. Nh4 {[%clk 0:02:35]}  Qc7 {[%clk 0:02:02]} 12. Nxg6 {[%clk 0:02:17]}  hxg6 {[%clk 0:02:02]} 13. e4 {[%clk 0:02:17]}  dxe4 {[%clk 0:01:59]} 14. Nxe4 {[%clk 0:02:17]}  Rd8 {[%clk 0:01:57]} 15. Be3 {[%clk 0:02:12]}  Nd5 {[%clk 0:01:54]} 16. Rc1 {[%clk 0:01:57]}  Qb8 {[%clk 0:01:52]} 17. Qf3 {[%clk 0:01:38]}  O-O {[%clk 0:01:47]} 18. Rfd1 {[%clk 0:01:35]}  f5 {[%clk 0:01:45]} 19. Ng5 {[%clk 0:01:10]}  f4 {[%clk 0:01:43]} 20. Qe4 {[%clk 0:01:02]}  Bxg5 {[%clk 0:01:28]} 21. Qxe6+ {[%clk 0:01:02]}  Kh7 {[%clk 0:01:23]} 22. Bd2 {[%clk 0:00:46]}  Qd6 {[%clk 0:00:41]} 23. Qe4 {[%clk 0:00:35]}  Nf6 {[%clk 0:00:37]} 24. Qb1 {[%clk 0:00:25]}  Nxd4 {[%clk 0:00:32]} 25. Bc3 {[%clk 0:00:22]}  Ne2+ {[%clk 0:00:30]} 26. Kh1 {[%clk 0:00:22]}  Qb6 {[%clk 0:00:26]} 27. Rc2 {[%clk 0:00:18]}  Qxf2 {[%clk 0:00:26]} 28. Re1 {[%clk 0:00:14]}  f3 {[%clk 0:00:24]} 29. Rcxe2 {[%clk 0:00:10]}  fxg2+ {[%clk 0:00:24]} 30. Kh2 {[%clk 0:00:10]}  g1=Q# {[%clk 0:00:24]} 0-1


[Site "https://www.chess.com"]

[Event "Titled Tuesday Blitz March 15 Early 2022"]
[White "Moroni, Luca Jr"]
[Black "Yang, Kaiqi"]
[WhiteFideId "865834"]
[BlackFideId "8604398"]
[WhiteElo "2573"]
[BlackElo "2373"]
[Result "1-0"]
[Round "04"]
[TimeControl "180+1"]
[Date "2022.03.15"]
[WhiteClock "0:00:46"]
[BlackClock "0:00:01"]

1. Nc3 {[%clk 0:02:59]}  Nf6 {[%clk 0:02:57]} 2. d4 {[%clk 0:02:59]}  d5 {[%clk 0:02:57]} 3. Bg5 {[%clk 0:02:59]}  e6 {[%clk 0:02:56]} 4. e4 {[%clk 0:02:58]}  dxe4 {[%clk 0:02:56]} 5. Nxe4 {[%clk 0:02:56]}  Be7 {[%clk 0:02:57]} 6. Bxf6 {[%clk 0:02:54]}  gxf6 {[%clk 0:02:57]} 7. Nf3 {[%clk 0:02:53]}  f5 {[%clk 0:02:56]} 8. Ng3 {[%clk 0:02:52]}  b6 {[%clk 0:02:50]} 9. a4 {[%clk 0:02:51]}  Bb7 {[%clk 0:02:48]} 10. a5 {[%clk 0:02:49]}  h5 {[%clk 0:02:44]} 11. h4 {[%clk 0:02:47]}  Qd6 {[%clk 0:02:34]} 12. Bb5+ {[%clk 0:02:46]}  c6 {[%clk 0:02:31]} 13. Be2 {[%clk 0:02:46]}  c5 {[%clk 0:02:13]} 14. O-O {[%clk 0:02:39]}  f4 {[%clk 0:02:01]} 15. Nh1 {[%clk 0:02:26]}  Rg8 {[%clk 0:01:51]} 16. dxc5 {[%clk 0:02:24]}  Qxc5 {[%clk 0:01:48]} 17. axb6 {[%clk 0:02:22]}  axb6 {[%clk 0:01:44]} 18. Rxa8 {[%clk 0:02:23]}  Bxa8 {[%clk 0:01:45]} 19. Qd3 {[%clk 0:02:23]}  Nd7 {[%clk 0:01:40]} 20. Ra1 {[%clk 0:02:21]}  Qc6 {[%clk 0:01:07]} 21. Qh7 {[%clk 0:02:12]}  Nf6 {[%clk 0:00:52]} 22. Bb5 {[%clk 0:02:12]}  Qxb5 {[%clk 0:00:43]} 23. Rxa8+ {[%clk 0:02:10]}  Kd7 {[%clk 0:00:43]} 24. Ra7+ {[%clk 0:02:08]}  Ke8 {[%clk 0:00:35]} 25. Ra8+ {[%clk 0:02:01]}  Kd7 {[%clk 0:00:34]} 26. Ra7+ {[%clk 0:01:49]}  Ke8 {[%clk 0:00:34]} 27. Qd3 {[%clk 0:01:34]}  Qxd3 {[%clk 0:00:29]} 28. cxd3 {[%clk 0:01:35]}  Kf8 {[%clk 0:00:10]} 29. Ne5 {[%clk 0:01:21]}  Nd5 {[%clk 0:00:04]} 30. f3 {[%clk 0:01:15]}  f6 {[%clk 0:00:04]} 31. Ra8+ {[%clk 0:01:10]}  Kg7 {[%clk 0:00:03]} 32. Rxg8+ {[%clk 0:01:11]}  Kxg8 {[%clk 0:00:03]} 33. Nc4 {[%clk 0:01:10]}  Bc5+ {[%clk 0:00:02]} 34. Kf1 {[%clk 0:01:11]}  b5 {[%clk 0:00:02]} 35. Nd2 {[%clk 0:01:10]}  Bd4 {[%clk 0:00:02]} 36. b3 {[%clk 0:01:08]}  Ne3+ {[%clk 0:00:02]} 37. Kf2 {[%clk 0:01:03]}  Nd1+ {[%clk 0:00:02]} 38. Ke2 {[%clk 0:00:55]}  Ne3 {[%clk 0:00:03]} 39. g3 {[%clk 0:00:52]}  fxg3 {[%clk 0:00:02]} 40. Nxg3 {[%clk 0:00:52]}  f5 {[%clk 0:00:02]} 41. Nxh5 {[%clk 0:00:51]}  Kf7 {[%clk 0:00:01]} 42. Nf4 {[%clk 0:00:50]}  e5 {[%clk 0:00:02]} 43. Nh3 {[%clk 0:00:48]}  Kg6 {[%clk 0:00:02]} 44. f4 {[%clk 0:00:46]}  exf4 {[%clk 0:00:01]} 45. Nxf4+ {[%clk 0:00:47]}  Kh6 {[%clk 0:00:01]} 46. Nf3 {[%clk 0:00:47]}  Bb6 {[%clk 0:00:01]} 47. Ng5 {[%clk 0:00:46]} 1-0


[Site "https://www.chess.com"]

[Event "Titled Tuesday Blitz March 15 Early 2022"]
[White "Navalgund, Niranjan"]
[Black "Eggleston, Thomas A"]
[WhiteFideId "5030854"]
[BlackFideId "412139"]
[WhiteElo "2290"]
[BlackElo "2174"]
[Result "1-0"]
[Round "04"]
[TimeControl "180+1"]
[Date "2022.03.15"]
[WhiteClock "0:01:22"]
[BlackClock "0:00:01"]

1. e4 {[%clk 0:03:00]}  e6 {[%clk 0:02:59]} 2. e5 {[%clk 0:03:00]}  d5 {[%clk 0:02:59]} 3. exd6 {[%clk 0:03:01]}  cxd6 {[%clk 0:02:56]} 4. d4 {[%clk 0:03:02]}  Nf6 {[%clk 0:02:54]} 5. Nf3 {[%clk 0:03:03]}  Be7 {[%clk 0:02:54]} 6. Bd3 {[%clk 0:02:56]}  O-O {[%clk 0:02:54]} 7. g4 {[%clk 0:02:57]}  e5 {[%clk 0:02:53]} 8. g5 {[%clk 0:02:57]}  Nd5 {[%clk 0:02:24]} 9. Be4 {[%clk 0:02:49]}  Be6 {[%clk 0:02:20]} 10. c4 {[%clk 0:02:49]}  Nb4 {[%clk 0:02:13]} 11. a3 {[%clk 0:02:47]}  d5 {[%clk 0:02:11]} 12. Bxh7+ {[%clk 0:02:46]}  Kxh7 {[%clk 0:02:09]} 13. axb4 {[%clk 0:02:46]}  Bxb4+ {[%clk 0:02:00]} 14. Bd2 {[%clk 0:02:44]}  Bxd2+ {[%clk 0:01:58]} 15. Nbxd2 {[%clk 0:02:44]}  exd4 {[%clk 0:01:46]} 16. Qc2+ {[%clk 0:02:34]}  Kg8 {[%clk 0:01:45]} 17. c5 {[%clk 0:02:29]}  Nc6 {[%clk 0:01:42]} 18. h4 {[%clk 0:02:28]}  d3 {[%clk 0:01:34]} 19. Qxd3 {[%clk 0:02:28]}  Nb4 {[%clk 0:01:34]} 20. Qc3 {[%clk 0:02:27]}  a5 {[%clk 0:01:32]} 21. Nd4 {[%clk 0:02:24]}  Re8 {[%clk 0:01:30]} 22. O-O {[%clk 0:02:23]}  Qc7 {[%clk 0:01:25]} 23. f4 {[%clk 0:02:22]}  Bg4 {[%clk 0:01:13]} 24. Qg3 {[%clk 0:01:33]}  Qxc5 {[%clk 0:01:09]} 25. Nb3 {[%clk 0:01:33]}  Qc8 {[%clk 0:01:06]} 26. Rac1 {[%clk 0:01:32]}  Qd7 {[%clk 0:01:06]} 27. f5 {[%clk 0:01:32]}  Bh5 {[%clk 0:01:02]} 28. Rc7 {[%clk 0:01:32]}  Qd8 {[%clk 0:00:55]} 29. g6 {[%clk 0:01:33]}  Rc8 {[%clk 0:00:43]} 30. gxf7+ {[%clk 0:01:33]}  Bxf7 {[%clk 0:00:43]} 31. Ne6 {[%clk 0:01:33]}  Qf6 {[%clk 0:00:36]} 32. Rxc8 {[%clk 0:01:29]}  Rxc8 {[%clk 0:00:36]} 33. Nbc5 {[%clk 0:01:27]}  Be8 {[%clk 0:00:21]} 34. Nxb7 {[%clk 0:01:24]}  d4 {[%clk 0:00:20]} 35. Nd6 {[%clk 0:01:23]}  Ra8 {[%clk 0:00:17]} 36. Ne4 {[%clk 0:01:23]}  Qh6 {[%clk 0:00:15]} 37. f6 {[%clk 0:01:20]}  Bf7 {[%clk 0:00:12]} 38. N6g5 {[%clk 0:01:18]}  gxf6 {[%clk 0:00:10]} 39. Rxf6 {[%clk 0:01:18]}  Qg7 {[%clk 0:00:07]} 40. Rxf7 {[%clk 0:01:18]}  Qxf7 {[%clk 0:00:06]} 41. Nxf7+ {[%clk 0:01:18]}  Kxf7 {[%clk 0:00:07]} 42. Ng5+ {[%clk 0:01:19]}  Ke7 {[%clk 0:00:06]} 43. Qe5+ {[%clk 0:01:19]}  Kd7 {[%clk 0:00:06]} 44. Qxd4+ {[%clk 0:01:18]}  Kc7 {[%clk 0:00:07]} 45. Qc5+ {[%clk 0:01:18]}  Kb7 {[%clk 0:00:07]} 46. Qb5+ {[%clk 0:01:18]}  Kc7 {[%clk 0:00:06]} 47. Qc5+ {[%clk 0:01:18]}  Kb7 {[%clk 0:00:06]} 48. Ne6 {[%clk 0:01:18]}  Rc8 {[%clk 0:00:06]} 49. Qb5+ {[%clk 0:01:18]}  Ka8 {[%clk 0:00:04]} 50. Qxa5+ {[%clk 0:01:18]}  Kb7 {[%clk 0:00:04]} 51. Qxb4+ {[%clk 0:01:19]}  Kc6 {[%clk 0:00:04]} 52. Qc5+ {[%clk 0:01:19]}  Kd7 {[%clk 0:00:04]} 53. Qxc8+ {[%clk 0:01:20]}  Kxc8 {[%clk 0:00:04]} 54. h5 {[%clk 0:01:20]}  Kd7 {[%clk 0:00:04]} 55. Nd4 {[%clk 0:01:20]}  Ke7 {[%clk 0:00:04]} 56. b4 {[%clk 0:01:20]}  Ke8 {[%clk 0:00:05]} 57. b5 {[%clk 0:01:21]}  Kf8 {[%clk 0:00:05]} 58. b6 {[%clk 0:01:20]}  Kg8 {[%clk 0:00:06]} 59. b7 {[%clk 0:01:21]}  Kh8 {[%clk 0:00:06]} 60. b8=B {[%clk 0:01:19]}  Kg8 {[%clk 0:00:06]} 61. Bf4 {[%clk 0:01:20]}  Kf7 {[%clk 0:00:06]} 62. Kg2 {[%clk 0:01:20]}  Kg7 {[%clk 0:00:06]} 63. Kh3 {[%clk 0:01:21]}  Kh7 {[%clk 0:00:05]} 64. Kg4 {[%clk 0:01:22]}  Kg7 {[%clk 0:00:06]} 65. Nf5+ {[%clk 0:01:23]}  Kf7 {[%clk 0:00:06]} 66. Kg5 {[%clk 0:01:23]}  Kg8 {[%clk 0:00:06]} 67. Kg6 {[%clk 0:01:23]}  Kh8 {[%clk 0:00:06]} 68. Bg3 {[%clk 0:01:22]}  Kg8 {[%clk 0:00:06]} 69. Ne7+ {[%clk 0:01:23]}  Kf8 {[%clk 0:00:06]} 70. Bd6 {[%clk 0:01:22]}  Ke8 {[%clk 0:00:04]} 71. h6 {[%clk 0:01:23]}  Kd7 {[%clk 0:00:04]} 72. h7 {[%clk 0:01:23]}  Ke6 {[%clk 0:00:03]} 73. h8=B {[%clk 0:01:19]}  Kxd6 {[%clk 0:00:02]} 74. Kf6 {[%clk 0:01:20]}  Kd7 {[%clk 0:00:02]} 75. Nf5 {[%clk 0:01:21]}  Kc6 {[%clk 0:00:02]} 76. Ke5 {[%clk 0:01:21]}  Kc5 {[%clk 0:00:02]} 77. Bf6 {[%clk 0:01:21]}  Kc4 {[%clk 0:00:02]} 78. Ke4 {[%clk 0:01:22]}  Kc5 {[%clk 0:00:02]} 79. Bd4+ {[%clk 0:01:22]}  Kc4 {[%clk 0:00:01]} 80. Ne3+ {[%clk 0:01:22]} 1-0


[Site "https://www.chess.com"]

[Event "Titled Tuesday Blitz March 15 Early 2022"]
[White "Nenezic, Marko"]
[Black "Araujo Filho, Luiz Antonio Coel"]
[WhiteFideId "912123"]
[BlackFideId "2130661"]
[WhiteElo "2457"]
[BlackElo "2196"]
[Result "1-0"]
[Round "04"]
[TimeControl "180+1"]
[Date "2022.03.15"]
[WhiteClock "0:00:20"]
[BlackClock "0:00:06"]

1. Nf3 {[%clk 0:03:00]}  f5 {[%clk 0:02:53]} 2. d3 {[%clk 0:03:00]}  g6 {[%clk 0:02:52]} 3. e4 {[%clk 0:02:59]}  fxe4 {[%clk 0:02:52]} 4. dxe4 {[%clk 0:02:59]}  Bg7 {[%clk 0:02:52]} 5. h4 {[%clk 0:02:56]}  Nf6 {[%clk 0:02:46]} 6. e5 {[%clk 0:02:55]}  Ng8 {[%clk 0:02:32]} 7. h5 {[%clk 0:02:53]}  Nc6 {[%clk 0:01:55]} 8. hxg6 {[%clk 0:02:47]}  hxg6 {[%clk 0:01:52]} 9. Rxh8 {[%clk 0:02:47]}  Bxh8 {[%clk 0:01:53]} 10. Bd3 {[%clk 0:02:47]}  e6 {[%clk 0:01:48]} 11. Bxg6+ {[%clk 0:02:31]}  Kf8 {[%clk 0:01:48]} 12. Qe2 {[%clk 0:02:18]}  Qe7 {[%clk 0:01:44]} 13. Ng5 {[%clk 0:01:19]}  Bxe5 {[%clk 0:01:24]} 14. Qh5 {[%clk 0:00:51]}  Bf6 {[%clk 0:01:18]} 15. Nc3 {[%clk 0:00:48]}  d5 {[%clk 0:01:09]} 16. Bd2 {[%clk 0:00:48]}  Qg7 {[%clk 0:01:06]} 17. O-O-O {[%clk 0:00:44]}  Bd7 {[%clk 0:01:04]} 18. Re1 {[%clk 0:00:43]}  Bxg5 {[%clk 0:00:55]} 19. Bxg5 {[%clk 0:00:42]}  Nce7 {[%clk 0:00:51]} 20. Bd3 {[%clk 0:00:37]}  c5 {[%clk 0:00:44]} 21. Re3 {[%clk 0:00:34]}  Be8 {[%clk 0:00:40]} 22. Rf3+ {[%clk 0:00:34]}  Bf7 {[%clk 0:00:39]} 23. Nb5 {[%clk 0:00:32]}  Nf5 {[%clk 0:00:30]} 24. Qg4 {[%clk 0:00:30]}  Ngh6 {[%clk 0:00:18]} 25. Qf4 {[%clk 0:00:30]}  Rc8 {[%clk 0:00:08]} 26. Nd6 {[%clk 0:00:22]}  Nxd6 {[%clk 0:00:06]} 27. Bxh6 {[%clk 0:00:20]} 1-0


[Site "https://www.chess.com"]

[Event "Titled Tuesday Blitz March 15 Early 2022"]
[White "P., Komal Kishore"]
[Black "Martic, Ivan"]
[WhiteFideId "5016703"]
[BlackFideId "929301"]
[WhiteElo "2124"]
[BlackElo "2317"]
[Result "0-1"]
[Round "04"]
[TimeControl "180+1"]
[Date "2022.03.15"]
[WhiteClock "0:00:46"]
[BlackClock "0:02:21"]

1. e4 {[%clk 0:03:00]}  g6 {[%clk 0:03:00]} 2. d4 {[%clk 0:02:59]}  Bg7 {[%clk 0:03:01]} 3. Nc3 {[%clk 0:02:58]}  d6 {[%clk 0:03:01]} 4. f4 {[%clk 0:02:57]}  a6 {[%clk 0:03:01]} 5. Nf3 {[%clk 0:02:57]}  b5 {[%clk 0:03:01]} 6. a3 {[%clk 0:02:57]}  Bb7 {[%clk 0:03:01]} 7. Bd3 {[%clk 0:02:56]}  Nd7 {[%clk 0:03:01]} 8. O-O {[%clk 0:02:56]}  c5 {[%clk 0:03:01]} 9. Be3 {[%clk 0:02:52]}  cxd4 {[%clk 0:02:58]} 10. Bxd4 {[%clk 0:02:50]}  Bxd4+ {[%clk 0:02:57]} 11. Nxd4 {[%clk 0:02:50]}  Qb6 {[%clk 0:02:58]} 12. Bc4 {[%clk 0:01:32]}  bxc4 {[%clk 0:02:40]} 13. e5 {[%clk 0:01:28]}  dxe5 {[%clk 0:02:35]} 14. fxe5 {[%clk 0:01:27]}  Nxe5 {[%clk 0:02:35]} 15. Kh1 {[%clk 0:01:20]}  Nf6 {[%clk 0:02:32]} 16. Na4 {[%clk 0:01:18]}  Qc7 {[%clk 0:02:31]} 17. Qd2 {[%clk 0:01:09]}  O-O {[%clk 0:02:27]} 18. b4 {[%clk 0:00:55]}  Rad8 {[%clk 0:02:24]} 19. Nc5 {[%clk 0:00:46]}  Neg4 {[%clk 0:02:21]} 0-1


[Site "https://www.chess.com"]

[Event "Titled Tuesday Blitz March 15 Early 2022"]
[White "Pakleza, Zbigniew"]
[Black "Atakhan, Abtin"]
[WhiteFideId "1119290"]
[BlackFideId "22502203"]
[WhiteElo "2467"]
[BlackElo "2119"]
[Result "0-1"]
[Round "04"]
[TimeControl "180+1"]
[Date "2022.03.15"]
[WhiteClock "0:00:06"]
[BlackClock "0:00:07"]

1. Nf3 {[%clk 0:02:56]}  d5 {[%clk 0:02:58]} 2. d4 {[%clk 0:02:56]}  Nf6 {[%clk 0:02:58]} 3. Bf4 {[%clk 0:02:56]}  c5 {[%clk 0:02:57]} 4. c3 {[%clk 0:02:57]}  Nc6 {[%clk 0:02:58]} 5. Nbd2 {[%clk 0:02:56]}  cxd4 {[%clk 0:02:55]} 6. cxd4 {[%clk 0:02:57]}  Bf5 {[%clk 0:02:53]} 7. e3 {[%clk 0:02:53]}  e6 {[%clk 0:02:52]} 8. Qb3 {[%clk 0:02:53]}  Bb4 {[%clk 0:02:46]} 9. a3 {[%clk 0:02:50]}  Qa5 {[%clk 0:02:44]} 10. Rd1 {[%clk 0:02:40]}  Bxd2+ {[%clk 0:02:40]} 11. Nxd2 {[%clk 0:02:40]}  O-O {[%clk 0:02:35]} 12. Qxb7 {[%clk 0:02:18]}  Rac8 {[%clk 0:01:47]} 13. Qa6 {[%clk 0:02:15]}  Ne4 {[%clk 0:01:29]} 14. f3 {[%clk 0:01:51]}  Nxd2 {[%clk 0:01:21]} 15. Rxd2 {[%clk 0:01:52]}  Rfe8 {[%clk 0:00:37]} 16. Bb5 {[%clk 0:01:10]}  Rf8 {[%clk 0:00:37]} 17. b4 {[%clk 0:01:04]}  Qb6 {[%clk 0:00:28]} 18. Kf2 {[%clk 0:00:47]}  Rfd8 {[%clk 0:00:27]} 19. Rc1 {[%clk 0:00:39]}  g5 {[%clk 0:00:09]} 20. Bxg5 {[%clk 0:00:34]}  Nxb4 {[%clk 0:00:10]} 21. Rxc8 {[%clk 0:00:14]}  Nxa6 {[%clk 0:00:07]} 22. Bxd8 {[%clk 0:00:15]}  Qb7 {[%clk 0:00:06]} 23. Bxa6 {[%clk 0:00:12]}  Qxa6 {[%clk 0:00:05]} 24. Rb8 {[%clk 0:00:12]}  Kg7 {[%clk 0:00:05]} 25. Bc7 {[%clk 0:00:11]}  Qxa3 {[%clk 0:00:05]} 26. Be5+ {[%clk 0:00:11]}  f6 {[%clk 0:00:05]} 27. Bf4 {[%clk 0:00:11]}  Kg6 {[%clk 0:00:04]} 28. g4 {[%clk 0:00:11]}  Bd3 {[%clk 0:00:04]} 29. h4 {[%clk 0:00:11]}  h5 {[%clk 0:00:05]} 30. gxh5+ {[%clk 0:00:11]}  Kxh5 {[%clk 0:00:06]} 31. Rh8+ {[%clk 0:00:11]}  Kg6 {[%clk 0:00:06]} 32. h5+ {[%clk 0:00:11]}  Kg7 {[%clk 0:00:06]} 33. Rb8 {[%clk 0:00:12]}  Qc3 {[%clk 0:00:06]} 34. Ra2 {[%clk 0:00:11]}  a6 {[%clk 0:00:05]} 35. Rab2 {[%clk 0:00:09]}  Bb5 {[%clk 0:00:05]} 36. Ra2 {[%clk 0:00:07]}  e5 {[%clk 0:00:05]} 37. dxe5 {[%clk 0:00:04]}  fxe5 {[%clk 0:00:06]} 38. Bg3 {[%clk 0:00:04]}  d4 {[%clk 0:00:06]} 39. Bxe5+ {[%clk 0:00:05]}  Kf7 {[%clk 0:00:06]} 40. Bxd4 {[%clk 0:00:05]}  Qc7 {[%clk 0:00:06]} 41. Rh8 {[%clk 0:00:05]}  Qh2+ {[%clk 0:00:06]} 42. Ke1 {[%clk 0:00:05]}  Qxa2 {[%clk 0:00:07]} 43. h6 {[%clk 0:00:06]}  Qe2# {[%clk 0:00:07]} 0-1


[Site "https://www.chess.com"]

[Event "Titled Tuesday Blitz March 15 Early 2022"]
[White "Perez Gormaz, Matias"]
[Black "Bacrot, Etienne"]
[WhiteFideId "3406342"]
[BlackFideId "605506"]
[WhiteElo "2327"]
[BlackElo "2673"]
[Result "0-1"]
[Round "04"]
[TimeControl "180+1"]
[Date "2022.03.15"]
[WhiteClock "0:00:01"]
[BlackClock "0:00:58"]

1. e4 {[%clk 0:02:51]}  c5 {[%clk 0:02:59]} 2. Nf3 {[%clk 0:02:51]}  d6 {[%clk 0:02:59]} 3. d4 {[%clk 0:02:51]}  cxd4 {[%clk 0:02:59]} 4. Nxd4 {[%clk 0:02:52]}  Nf6 {[%clk 0:03:00]} 5. Nc3 {[%clk 0:02:53]}  Nc6 {[%clk 0:03:00]} 6. Be2 {[%clk 0:02:52]}  g6 {[%clk 0:02:59]} 7. O-O {[%clk 0:02:51]}  Bg7 {[%clk 0:03:00]} 8. Be3 {[%clk 0:02:51]}  O-O {[%clk 0:03:00]} 9. Qd2 {[%clk 0:02:52]}  Qa5 {[%clk 0:02:59]} 10. Nb3 {[%clk 0:02:15]}  Qc7 {[%clk 0:02:54]} 11. Rfe1 {[%clk 0:02:00]}  Be6 {[%clk 0:02:50]} 12. Nd5 {[%clk 0:01:52]}  Qd7 {[%clk 0:02:47]} 13. f3 {[%clk 0:01:46]}  Rfc8 {[%clk 0:02:40]} 14. c4 {[%clk 0:01:44]}  Qd8 {[%clk 0:02:30]} 15. Rac1 {[%clk 0:01:42]}  Nd7 {[%clk 0:02:25]} 16. Bg5 {[%clk 0:01:33]}  a5 {[%clk 0:02:21]} 17. Bh6 {[%clk 0:01:05]}  Bxh6 {[%clk 0:02:15]} 18. Qxh6 {[%clk 0:01:05]}  a4 {[%clk 0:02:15]} 19. Nd2 {[%clk 0:01:05]}  Bxd5 {[%clk 0:01:51]} 20. exd5 {[%clk 0:01:05]}  Nd4 {[%clk 0:01:49]} 21. Bd3 {[%clk 0:00:53]}  Ne5 {[%clk 0:01:33]} 22. Bb1 {[%clk 0:00:44]}  Qb6 {[%clk 0:01:30]} 23. Kh1 {[%clk 0:00:31]}  Qxb2 {[%clk 0:01:29]} 24. Ne4 {[%clk 0:00:24]}  Nf5 {[%clk 0:01:20]} 25. Qd2 {[%clk 0:00:14]}  a3 {[%clk 0:01:11]} 26. f4 {[%clk 0:00:15]}  Nxc4 {[%clk 0:01:07]} 27. Qd3 {[%clk 0:00:08]}  Nce3 {[%clk 0:01:03]} 28. Rxc8+ {[%clk 0:00:07]}  Rxc8 {[%clk 0:01:03]} 29. h3 {[%clk 0:00:03]}  Ng3+ {[%clk 0:00:57]} 30. Nxg3 {[%clk 0:00:01]}  Qxg2# {[%clk 0:00:58]} 0-1


[Site "https://www.chess.com"]